bitfinex-derivatives/quotes_SOLF0:USTF0_20250207
["timestamp","ask_amount","ask_price","bid_price","bid_amount"]
[1738961351858,0.03890977,190.4,190.35,0.03319038]
[1738961352362,0.03890977,190.4,190.35,5.28579038]
[1738961352558,0.03890977,190.4,190.35,0.03319038]
[1738961352761,0.03890977,190.4,190.38,5.2517]
[1738961353063,4.3996,190.48,190.36,3.0914]
[1738961354064,0.03394669,190.44,190.4,0.03856855]
[1738961355658,5.251,190.41,190.4,0.03856855]
[1738961355859,0.03394669,190.44,190.4,0.03856855]
[1738961356268,5.251,190.41,190.4,0.03856855]
[1738961357165,5.251,190.41,190.4,6.855e-05]
[1738961357468,26.78665932,190.43,190.27,2.8908]
[1738961357869,23.69105932,190.46,190.27,26.58185932]
[1738961358068,23.69105932,190.46,190.3,23.69105932]
[1738961358370,23.69105932,190.46,190.34,5.2529]
[1738961358666,7.4952,190.48,190.28,3.0673]
[1738961358667,0.03741338,190.4,190.36,0.03317779]
[1738961358865,5.2521,190.37,190.36,0.03317779]
[1738961359068,23.69105932,190.43,190.3,5.2538]
[1738961359368,0.0389293,190.38,190.35,0.03745641]
[1738961359576,5.2524,190.36,190.35,0.03745641]
[1738961359762,23.69105932,190.4,190.29,5.2541]
[1738961359963,5.2524,190.36,190.35,5.133e-05]
[1738961363267,23.69105932,190.37,190.24,2.9299]
[1738961363667,0.03610583,190.38,190.23,2.9373]
[1738961363668,23.69105932,190.34,190.23,2.9373]
[1738961363873,5.2542,190.3,190.23,2.9373]
[1738961364570,0.03847152,190.28,190.23,2.9373]
[1738961365372,0.03847152,190.28,190.15,30.79075932]
[1738961365569,0.03847152,190.28,190.17,3.0759]
[1738961366272,0.03847152,190.28,190.19,109.1971]
[1738961366769,0.03847152,190.28,190.19,103.94]
[1738961366974,0.03847152,190.28,190.24,5.2557]
[1738961367372,0.03847152,190.28,190.24,5.2556]
[1738961367567,0.03847152,190.28,190.19,103.94]
[1738961367970,5.256,190.23,190.19,103.94]
[1738961368171,0.03847152,190.28,190.19,103.94]
[1738961368469,5.254,190.31,190.23,5.2559]
[1738961368670,0.03977121,190.25,190.19,103.94]
[1738961369067,23.69105932,190.32,190.19,103.94]
[1738961369273,0.03679972,190.24,190.19,103.94]
[1738961370572,5.256,190.23,190.19,103.94]
[1738961370772,0.03679972,190.24,190.19,103.94]
[1738961371473,5.256,190.23,190.19,103.94]
[1738961372270,0.03679972,190.24,190.11,7.2736]
[1738961372471,0.03679972,190.24,190.12,3.1226]
[1738961372675,23.69105932,190.26,190.14,5.2582]
[1738961372877,5.2573,190.19,190.12,3.1226]
[1738961373079,0.03379817,190.2,190.12,3.1226]
[1738961373574,5.2573,190.18,190.12,3.1226]
[1738961373775,0.03379817,190.2,190.08,5.49090766]
[1738961373970,5.2583,190.15,190.09,3.1737]
[1738961374179,3.1367,190.22,190.09,3.1737]
[1738961374378,3.1367,190.22,190.07,23.69105932]
[1738961374680,0.03338716,190.14,190.08,5.2601]
[1738961375082,0.03338716,190.14,190.07,23.69105932]
[1738961375388,5.2575,190.18,190.09,5.2597]
[1738961375579,5.2575,190.18,190.1,7.5138]
[1738961375783,5.2577,190.17,190.1,7.5138]
[1738961375980,23.69105932,190.23,190.1,7.5138]
[1738961376181,26.82775932,190.26,190.1,31.20485932]
[1738961376681,5.29692629,190.2,190.16,0.03650917]
[1738961377083,0.04002629,190.2,190.16,0.03650917]
[1738961378278,5.29702629,190.2,190.16,0.03650917]
[1738961378485,0.04002629,190.2,190.16,0.03650917]
[1738961379682,2.9639,190.32,190.18,23.69105932]
[1738961380878,0.03581121,190.27,190.23,0.03932718]
[1738961381078,4.2949,190.37,190.23,0.03932718]
[1738961381279,4.2949,190.37,190.23,7.13152718]
[1738961381484,4.2949,190.37,190.23,7.0922]
[1738961381684,23.69105932,190.42,190.25,23.69105932]
[1738961381885,27.98595932,190.42,190.28,23.69105932]
[1738961382082,27.98595932,190.42,190.3,5.2538]
[1738961382282,27.98595932,190.42,190.25,23.69105932]
[1738961382484,0.03913108,190.37,190.33,0.0352175]
[1738961382895,5.2525,190.36,190.33,0.0352175]
[1738961383095,0.03913108,190.37,190.33,0.0352175]
[1738961385389,0.03913108,190.37,190.33,5.2883175]
[1738961385584,5.2506,190.43,190.33,0.0352175]
[1738961385992,31.32405932,190.48,190.34,23.69105932]
[1738961386188,7.633,190.48,190.34,23.69105932]
[1738961386387,23.69105932,190.45,190.32,7.5951]
[1738961386587,23.69105932,190.45,190.28,23.69105932]
[1738961386588,23.69105932,190.42,190.26,7.7105]
[1738961386793,23.69105932,190.39,190.26,7.7105]
[1738961386984,321.32405932,190.48,190.16,81.44216515]
[1738961386985,23.69105932,190.33,190.16,81.44216515]
[1738961387193,5.254,190.31,190.21,5.2565]
[1738961387391,10.7092,190.38,190.2,7.21888822]
[1738961387392,23.69105932,190.36,190.2,7.21888822]
[1738961387590,0.03319757,190.28,190.23,0.03718877]
[1738961387991,0.03319757,190.28,190.2,7.21888822]
[1738961388386,0.03319757,190.28,190.24,0.03728819]
[1738961388798,5.2553,190.26,190.24,0.03728819]
[1738961390197,5.28799757,190.28,190.24,0.03728819]
[1738961390399,0.03319757,190.28,190.24,0.03728819]
[1738961390897,5.2552,190.26,190.24,0.03728819]
[1738961393695,5.2554,190.25,190.24,0.03728819]
[1738961393891,0.03319757,190.28,190.08,104.02]
[1738961393892,23.69105932,190.27,190.08,104.02]
[1738961394093,27.91235932,190.27,190.09,10.6611]
[1738961394496,27.91235932,190.27,190.12,28.94975932]
[1738961395300,5.2571,190.19,190.18,0.03378246]
[1738961399500,0.03999813,190.21,190.18,0.03378246]
[1738961400194,9.813e-05,190.21,190.18,0.03378246]
[1738961400399,7.2722,190.34,190.18,23.72484178]
[1738961400600,5.2535,190.32,190.25,5.2552]
[1738961400800,5.2535,190.32,190.24,23.69105932]
[1738961400801,7.14,190.44,190.27,23.69105932]
[1738961400998,10.1231,190.44,190.27,23.69105932]
[1738961401198,10.1231,190.44,190.31,5.2537]
[1738961401400,10.1231,190.44,190.3,23.69105932]
[1738961401598,5.2526,190.35,190.34,0.03396317]
[1738961401798,23.73031815,190.37,190.19,7.1993]
[1738961402098,28.16825932,190.34,190.19,7.1993]
[1738961402297,28.16825932,190.34,190.1,5.92]
[1738961402298,2.9831,190.33,190.18,23.69105932]
[1738961402499,28.16825932,190.34,190.13,7.5329]
[1738961402500,4.4772,190.34,190.21,23.69105932]
[1738961402797,4.4772,190.34,190.24,23.69105932]
[1738961402998,0.03315147,190.29,190.26,0.03393761]
[1738961403903,23.69105932,190.4,190.26,0.03393761]
[1738961404105,4.4244,190.39,190.26,0.03393761]
[1738961404303,4.4244,190.39,190.24,23.69105932]
[1738961404605,2.9831,190.44,190.3,23.69105932]
[1738961404803,23.69105932,190.48,190.33,23.69105932]
[1738961405005,5.2498,190.46,190.38,5.2517]
[1738961405203,303.77257748,190.58,190.36,23.69105932]
[1738961405204,23.69105932,190.54,190.36,23.69105932]
[1738961405409,0.04006446,190.42,190.39,0.03688331]
[1738961405608,23.69105932,190.57,190.39,23.69105932]
[1738961405906,198.3962,190.59,190.42,23.69105932]
[1738961405907,7.3962,190.59,190.42,23.69105932]
[1738961406109,5.247,190.56,190.49,5.2487]
[1738961406302,7.3962,190.59,190.43,2.9329]
[1738961406700,38.74399239,190.53,190.39,5.2514]
[1738961406899,38.70828995,190.5,190.37,4.2599]
[1738961407310,0.03990131,190.45,190.37,4.2599]
[1738961407706,5.2513,190.4,190.33,5.253]
[1738961408008,0.03990131,190.45,190.31,3.1076]
[1738961408209,6.0885,190.48,190.34,38.70828995]
[1738961408398,0.03784855,190.4,190.38,5.2518]
[1738961408604,3.1389,190.48,190.37,38.70828995]
[1738961408799,3.1389,190.48,190.37,43.05538995]
[1738961409507,3.1389,190.48,190.37,4.3471]
[1738961409805,0.03538375,190.44,190.41,0.03511641]
[1738961410000,5.2504,190.43,190.41,0.03511641]
[1738961410206,0.03538375,190.44,190.41,0.03511641]
[1738961411209,5.2507,190.42,190.41,0.03511641]
[1738961411808,5.28578375,190.44,190.41,0.03511641]
[1738961412009,0.03538375,190.44,190.41,0.03511641]
[1738961412410,5.28558375,190.44,190.41,0.03511641]
[1738961412603,0.03538375,190.44,190.41,0.03511641]
[1738961412804,38.7436737,190.44,190.32,4.3471]
[1738961413107,5.251,190.42,190.36,5.2524]
[1738961413308,3.1389,190.48,190.34,38.70828995]
[1738961413716,5.2502,190.44,190.35,3.2213]
[1738961414008,0.03556788,190.43,190.39,0.03505379]
[1738961414707,5.2513,190.4,190.39,0.03505379]
[1738961415807,5.2523,190.37,190.29,3.2213]
[1738961416004,0.03556788,190.43,190.31,38.70828995]
[1738961416205,3.1873,190.47,190.34,38.70828995]
[1738961416608,3.1873,190.47,190.38,5.2516]
[1738961417105,0.03596474,190.44,190.41,0.03740145]
[1738961417711,38.70828995,190.53,190.43,5.2504]
[1738961417913,41.92798995,190.53,190.43,5.2504]
[1738961418210,5.2498,190.46,190.41,5.2508]
[1738961418418,41.92798995,190.53,190.38,3.1294]
[1738961418712,5.2504,190.44,190.38,8.381]
[1738961418914,5.2504,190.44,190.34,38.70828995]
[1738961418915,0.03847774,190.47,190.44,4.913e-05]
[1738961419211,5.252,190.38,190.32,5.2532]
[1738961419411,5.252,190.38,190.3,104.04]
[1738961419613,3.1428,190.44,190.3,104.04]
[1738961420011,38.70828995,190.42,190.3,104.04]
[1738961420209,38.70828995,190.39,190.3,104.04]
[1738961420413,0.03707983,190.38,190.34,0.03735369]
[1738961420806,5.2526,190.35,190.34,0.03735369]
[1738961421006,0.03707983,190.38,190.34,0.03735369]
[1738961422205,0.03707983,190.38,190.3,104.04]
[1738961422406,0.03707983,190.38,190.24,38.70828995]
[1738961422610,0.03707983,190.38,190.23,7.8375]
[1738961422806,38.70828995,190.39,190.24,38.70828995]
[1738961423011,5.2531,190.34,190.29,5.254]
[1738961423215,4.6175,190.4,190.24,41.76418995]
[1738961423611,0.03473411,190.33,190.3,0.03918733]
[1738961424119,0.03751369,190.33,190.3,5.29318733]
[1738961424918,11.68543895,190.48,190.32,38.70828995]
[1738961425219,328.70828995,190.5,190.32,38.70828995]
[1738961425220,4.4598,190.47,190.32,38.70828995]
[1738961425513,5.2506,190.43,190.35,38.70828995]
[1738961425715,4.4598,190.47,190.32,38.70828995]
[1738961426116,0.03754947,190.4,190.36,0.03785798]
[1738961427816,5.2521,190.37,190.36,0.03785798]
[1738961428119,0.03754947,190.4,190.36,0.03785798]
[1738961429517,3.1294,190.49,190.38,38.70828995]
[1738961429518,3.0118,190.49,190.38,38.70828995]
[1738961429712,8.2608,190.49,190.38,38.70828995]
[1738961429915,4.6075,190.55,190.41,38.70828995]
[1738961430115,4.6075,190.55,190.49,5.2488]
[1738961430315,3.0118,190.57,190.48,38.70828995]
[1738961430715,5.2473,190.55,190.49,5.2485]
[1738961430914,0.03821759,190.54,190.51,0.03805457]
[1738961431316,0.03821759,190.54,190.52,5.2479]
[1738961431716,0.03821759,190.54,190.51,0.03805457]
[1738961432320,5.2477,190.53,190.51,0.03805457]
[1738961432717,0.03821759,190.54,190.51,0.03805457]
[1738961434022,5.248,190.52,190.51,0.03805457]
[1738961434221,5.248,190.52,190.51,5.457e-05]
[1738961438028,46.39978995,190.53,190.35,10.5421]
[1738961438223,38.70828995,190.49,190.35,10.5421]
[1738961438528,38.70828995,190.49,190.38,5.2516]
[1738961438725,23.82899199,190.5,190.35,10.5421]
[1738961438933,23.82899199,190.5,190.36,5.2522]
[1738961439123,5.2516,190.39,190.35,3.0578]
[1738961439524,3.1685,190.46,190.35,3.0963685]
[1738961439827,0.04039463,190.39,190.35,3.0578]
[1738961440130,0.04039463,190.39,190.36,5.2521]
[1738961440725,0.04039463,190.39,190.35,0.03748937]
[1738961441231,5.2524,190.36,190.35,0.03748937]
[1738961442024,0.04039463,190.39,190.35,0.03748937]
[1738961442429,0.04039463,190.39,190.28,3.0698]
[1738961442629,5.2527,190.35,190.28,3.0698]
[1738961443030,23.82899199,190.41,190.28,3.0698]
[1738961443229,3.171,190.42,190.28,3.0698]
[1738961443830,0.03377861,190.37,190.33,0.039403]
[1738961445936,5.2503,190.44,190.36,5.2524]
[1738961446124,5.2503,190.44,190.33,23.86839499]
[1738961446432,23.82899199,190.47,190.3,23.82899199]
[1738961446626,41.90656241,190.46,190.29,38.73806241]
[1738961446828,5.251,190.41,190.33,5.253]
[1738961447027,41.90656241,190.46,190.29,38.73806241]
[1738961447233,0.03452409,190.39,190.35,0.03339696]
[1738961447829,0.03452409,190.39,190.38,5.2518]
[1738961448030,3.1685,190.46,190.35,38.77145937]
[1738961448332,38.73806241,190.55,190.38,38.73806241]
[1738961449038,9.5127,190.5,190.44,5.2502]
[1738961449237,0.0379129,190.46,190.42,0.03837796]
[1738961449533,5.25,190.45,190.42,0.03837796]
[1738961449736,0.0379129,190.46,190.42,0.03837796]
[1738961449930,38.77597531,190.46,190.42,0.03837796]
[1738961450440,5.2504,190.43,190.42,0.03837796]
[1738961450633,0.0379129,190.46,190.42,0.03837796]
[1738961450831,5.2501,190.45,190.42,0.03837796]
[1738961451034,0.0379129,190.46,190.42,0.03837796]
[1738961452531,0.0379129,190.46,190.45,5.2499]
[1738961453141,0.0379129,190.46,190.43,5.2504]
[1738961453331,0.0379129,190.46,190.42,0.03837796]
[1738961453837,0.0379129,190.46,190.45,5.2499]
[1738961454043,3.0755,190.54,190.44,38.73806241]
[1738961454240,8.3229,190.54,190.44,38.73806241]
[1738961454442,4.4076,190.63,190.47,38.73806241]
[1738961454642,3.0755,190.62,190.47,38.73806241]
[1738961455245,0.03564739,190.56,190.53,0.03388803]
[1738961457642,5.2474,190.54,190.53,0.03388803]
[1738961457844,0.03564739,190.56,190.53,0.03388803]
[1738961459140,5.28254739,190.56,190.53,0.03388803]
[1738961459446,0.03564739,190.56,190.53,0.03388803]
[1738961459638,5.2474,190.54,190.53,0.03388803]
[1738961460341,0.03564739,190.56,190.53,0.03388803]
[1738961461338,5.2474,190.54,190.53,0.03388803]
[1738961461943,5.2498,190.46,190.42,4.4246]
[1738961462151,38.73806241,190.55,190.42,4.4246]
[1738961462448,38.73806241,190.52,190.39,3.0439]
[1738961462648,4.2593,190.54,190.39,3.0439]
[1738961462846,4.2593,190.54,190.41,38.73806241]
[1738961463042,5.2483,190.51,190.44,38.73806241]
[1738961463246,0.03889617,190.49,190.46,0.03665489]
[1738961463545,5.2493,190.47,190.46,0.03665489]
[1738961463743,0.03889617,190.49,190.46,0.03665489]
[1738961464051,5.28769617,190.49,190.46,0.03665489]
[1738961464649,0.03889617,190.49,190.46,0.03665489]
[1738961465255,5.2493,190.47,190.46,0.03665489]
[1738961466847,5.2513,190.4,190.38,103.94]
[1738961467143,38.73806241,190.49,190.33,34.35694688]
[1738961467344,5.2507,190.43,190.33,34.1285529]
[1738961467544,38.73806241,190.49,190.33,28.8755529]
[1738961467949,0.03894398,190.43,190.39,0.03893996]
[1738961468751,5.2513,190.4,190.39,0.03893996]
[1738961469648,5.2513,190.4,190.39,3.996e-05]
[1738961472549,9.5805,190.42,190.39,3.996e-05]
[1738961472754,5.2509,190.42,190.39,3.996e-05]
[1738961473052,0.03894398,190.43,190.39,3.996e-05]
[1738961474657,5.28934398,190.43,190.39,3.996e-05]
[1738961475256,5.2513,190.4,190.39,3.996e-05]
[1738961475953,5.251,190.41,190.39,3.996e-05]
[1738961476347,0.03894398,190.43,190.39,3.996e-05]
[1738961476747,0.03894398,190.43,190.39,23.82951092]
[1738961476954,0.03894398,190.43,190.39,3.996e-05]
[1738961478254,0.03894398,190.43,190.39,5.25153996]
[1738961478457,0.03894398,190.43,190.39,3.996e-05]
[1738961478757,5.2489,190.49,190.42,5.2505]
[1738961478957,7.5312,190.54,190.39,23.82947096]
[1738961479154,23.82947096,190.53,190.36,23.82947096]
[1738961479556,23.82947096,190.5,190.33,23.82947096]
[1738961479750,23.82947096,190.53,190.36,23.82947096]
[1738961479949,0.04043465,190.43,190.41,5.251]
[1738961480256,7.5312,190.54,190.39,23.82947096]
[1738961480449,7.5312,190.54,190.43,5.2502]
[1738961480450,5.2488,190.5,190.43,5.2502]
[1738961480654,7.5312,190.54,190.43,5.2502]
[1738961480852,7.5312,190.54,190.4,4.4163]
[1738961481051,5.2486,190.5,190.44,5.2499]
[1738961481259,7.5312,190.54,190.42,23.82947096]
[1738961481459,0.03794338,190.49,190.45,0.03506183]
[1738961481660,0.03794338,190.49,190.47,5.2493]
[1738961481857,41.25719379,190.56,190.45,23.86453279]
[1738961482061,5.2472,190.55,190.49,5.2487]
[1738961482261,5.2472,190.55,190.43,3.0828]
[1738961482262,7.3947,190.63,190.48,23.82947096]
[1738961482567,7.3947,190.63,190.51,23.82947096]
[1738961482762,3.335,190.7,190.54,23.82947096]
[1738961483059,0.04033214,190.59,190.57,23.82947096]
[1738961483257,5.2441,190.67,190.57,23.82947096]
[1738961483464,83.05068051,190.71,190.6,23.82947096]
[1738961483764,78.02408051,190.71,190.67,5.2437]
[1738961483958,78.02408051,190.71,190.66,23.82947096]
[1738961484157,78.02408051,190.71,190.63,23.82947096]
[1738961484359,78.02408051,190.71,190.63,5.2448]
[1738961484560,0.03884509,190.69,190.65,0.03860315]
[1738961484864,5.2436,190.68,190.65,0.03860315]
[1738961485263,0.03884509,190.69,190.65,0.03860315]
[1738961485561,5.244,190.67,190.65,0.03860315]
[1738961485962,0.03884509,190.69,190.65,0.03860315]
[1738961487353,23.82947096,190.67,190.47,23.82947096]
[1738961487555,23.82947096,190.62,190.46,12.46838822]
[1738961487760,23.82947096,190.62,190.46,7.21888822]
[1738961487960,7.3444,190.66,190.46,7.21888822]
[1738961487961,31.17387096,190.66,190.47,23.82947096]
[1738961488154,31.17387096,190.66,190.51,23.82947096]
[1738961488364,5.245,190.63,190.54,5.2473]
[1738961488665,0.03522506,190.6,190.57,0.03404311]
[1738961490071,38.64604213,190.72,190.57,0.03404311]
[1738961490266,3.0792,190.75,190.58,38.64604213]
[1738961490866,5.2432,190.7,190.61,5.2454]
[1738961491070,5.2432,190.7,190.58,38.64604213]
[1738961491370,0.03320294,190.67,190.64,0.03985919]
[1738961491867,0.03964377,190.67,190.64,0.03985919]
[1738961493367,7.4227,190.77,190.64,0.03985919]
[1738961493772,7.4227,190.77,190.63,7.9925]
[1738961494072,7.4227,190.77,190.5,230.64604213]
[1738961494073,229.64604213,190.76,190.59,38.64604213]
[1738961494269,38.64604213,190.73,190.56,43.37224213]
[1738961494463,38.64604213,190.73,190.6,5.2457]
[1738961494667,0.03499478,190.69,190.66,0.03342254]
[1738961494863,5.2438,190.67,190.66,0.03342254]
[1738961495973,5.27829478,190.69,190.66,0.03342254]
[1738961496169,0.03499478,190.69,190.66,0.03342254]
[1738961497067,0.03499478,190.69,190.67,5.2438]
[1738961497264,0.03499478,190.69,190.66,0.03342254]
[1738961498174,5.27829478,190.69,190.66,0.03342254]
[1738961498381,0.03499478,190.69,190.66,0.03342254]
[1738961498870,5.2436,190.68,190.66,0.03342254]
[1738961499069,0.03499478,190.69,190.66,0.03342254]
[1738961500872,5.2438,190.67,190.66,0.03342254]
[1738961502978,5.2455,190.62,190.53,38.64604213]
[1738961503175,3.1887,190.66,190.53,38.64604213]
[1738961503376,5.245,190.63,190.57,5.2466]
[1738961503573,3.1887,190.66,190.56,38.64604213]
[1738961503772,7.583,190.68,190.61,5.2454]
[1738961503977,7.583,190.68,190.58,5.69235]
[1738961503978,5.2447,190.64,190.58,5.69235]
[1738961504279,5.2447,190.64,190.63,0.03643993]
[1738961504580,5.2444,190.65,190.58,5.69235]
[1738961504784,5.2444,190.65,190.62,0.03394496]
[1738961505482,0.03481146,190.66,190.62,0.03394496]
[1738961505677,0.03481146,190.66,190.62,38.67998709]
[1738961507081,0.03481146,190.66,190.62,0.03394496]
[1738961507479,0.03481146,190.66,190.62,38.67998709]
[1738961508682,0.03481146,190.66,190.63,5.2447]
[1738961509784,0.03481146,190.66,190.62,0.03394496]
[1738961510280,5.2449,190.63,190.62,0.03394496]
[1738961513278,0.03481146,190.66,190.62,0.03394496]
[1738961513974,5.2444,190.65,190.62,0.03394496]
[1738961514182,0.03481146,190.66,190.62,0.03394496]
[1738961514586,5.2449,190.63,190.62,0.03394496]
[1738961516383,5.2446,190.65,190.62,0.03394496]
[1738961516585,0.03481146,190.66,190.62,0.03394496]
[1738961517182,5.2449,190.63,190.62,0.03394496]
[1738961518483,0.03481146,190.66,190.62,0.03394496]
[1738961519184,5.2449,190.63,190.62,0.03394496]
[1738961519486,0.03481146,190.66,190.58,5.69235]
[1738961520190,5.246,190.6,190.58,5.69235]
[1738961520385,0.03481146,190.66,190.58,5.69235]
[1738961520681,0.03995118,190.64,190.58,5.69235]
[1738961521085,0.03995118,190.64,190.59,0.03499005]
[1738961521286,0.03995118,190.64,190.59,23.81241225]
[1738961521692,3.2451,190.72,190.66,5.244]
[1738961521883,3.2451,190.72,190.63,23.7774222]
[1738961522085,191.0,190.77,190.66,23.7774222]
[1738961522285,44.54727176,190.79,190.7,5.243]
[1738961522485,44.54727176,190.79,190.66,23.7774222]
[1738961522486,5.2414,190.76,190.66,23.7774222]
[1738961522985,44.54727176,190.79,190.6,35.0228222]
[1738961522986,0.03498217,190.73,190.69,23.81503585]
[1738961523491,194.2803,190.83,190.72,23.7774222]
[1738961523791,3.2803,190.83,190.72,23.7774222]
[1738961524588,0.03817244,190.79,190.76,0.03560138]
[1738961524787,5.2409,190.78,190.76,0.03560138]
[1738961525991,5.27867244,190.79,190.76,0.03560138]
[1738961526488,0.03817244,190.79,190.76,0.03560138]
[1738961527293,5.2408,190.78,190.76,0.03560138]
[1738961528290,0.03817244,190.79,190.63,28.8755529]
[1738961528493,23.7774222,190.68,190.61,36.56235873]
[1738961528886,5.2452,190.62,190.61,28.42655873]
[1738961529690,5.2452,190.62,190.6,86.3104149]
[1738961530791,5.2457,190.61,190.51,16.0843]
[1738961530991,38.71073895,190.63,190.58,5e-05]
[1738961530992,38.67139836,190.59,190.58,5e-05]
[1738961533095,43.91679836,190.62,190.58,5e-05]
[1738961533594,38.67139836,190.62,190.58,5e-05]
[1738961533895,0.03934059,190.63,190.58,5e-05]
[1738961534892,5.2455,190.61,190.58,5e-05]
[1738961535097,0.03934059,190.63,190.58,5e-05]
[1738961535300,38.67139836,190.61,190.58,5e-05]
[1738961535496,5.246,190.59,190.58,5e-05]
[1738961535795,191.0,190.6,190.46,4.339]
[1738961535996,5.2481,190.52,190.46,4.339]
[1738961536291,38.67139836,190.53,190.41,6.2513]
[1738961536497,38.67139836,190.47,190.31,86.27696767]
[1738961536796,38.67139836,190.44,190.31,97.26296767]
[1738961536994,38.67139836,190.5,190.37,5.2521]
[1738961537194,0.03935865,190.41,190.37,0.03470517]
[1738961537396,38.67139836,190.5,190.33,38.67139836]
[1738961537698,0.03458375,190.41,190.37,0.03499913]
[1738961537997,191.0,190.52,190.33,38.67139836]
[1738961537998,38.67139836,190.5,190.33,38.67139836]
[1738961538197,0.03936089,190.41,190.37,0.03825825]
[1738961538392,191.0,190.52,190.37,0.03825825]
[1738961538596,38.67139836,190.56,190.39,38.67139836]
[1738961539604,0.03615965,190.49,190.46,0.03950401]
[1738961539797,5.2482,190.52,190.46,0.03950401]
[1738961540099,0.03904022,190.49,190.46,0.03950401]
[1738961540598,0.03643985,190.49,190.46,0.03950401]
[1738961540996,191.0,190.58,190.46,0.03950401]
[1738961541301,191.0,190.58,190.45,38.67139836]
[1738961541495,5.2468,190.57,190.5,5.2482]
[1738961541702,38.67139836,190.62,190.45,38.67139836]
[1738961541999,38.67139836,190.56,190.43,4.5206]
[1738961542197,38.67139836,190.62,190.43,4.5206]
[1738961542401,0.03406829,190.55,190.52,0.03486285]
[1738961542896,5.2463,190.58,190.52,0.03492921]
[1738961543093,0.03538804,190.55,190.52,0.03492921]
[1738961543296,0.03538804,190.55,190.53,5.2474]
[1738961543497,5.2464,190.58,190.53,5.2474]
[1738961543699,0.03313606,190.56,190.53,5.2474]
[1738961544398,0.03313606,190.56,190.52,0.03940847]
[1738961546406,5.2474,190.55,190.52,0.03940847]
[1738961546707,0.03313606,190.56,190.52,0.03940847]
[1738961547703,5.2477,190.53,190.52,0.03940847]
[1738961547904,5.2477,190.53,190.52,8.47e-06]
[1738961550303,0.03313606,190.56,190.52,8.47e-06]
[1738961551205,38.70453442,190.56,190.52,8.47e-06]
[1738961551408,5.2477,190.53,190.52,8.47e-06]
[1738961552610,5.2474,190.55,190.52,8.47e-06]
[1738961552803,0.03313606,190.56,190.52,8.47e-06]
[1738961554307,5.2477,190.53,190.52,8.47e-06]
[1738961559104,5.2507,190.42,190.36,6.346]
[1738961559412,191.0,190.52,190.37,4.6454]
[1738961559611,23.79884783,190.53,190.37,4.6454]
[1738961559612,191.0,190.51,190.37,4.6454]
[1738961559811,5.2509,190.42,190.37,4.6454]
[1738961560314,0.03761061,190.41,190.38,0.0383734]
[1738961564519,191.0,190.5,190.39,23.79884783]
[1738961565024,191.0,190.5,190.41,5.2509]
[1738961565723,0.03797782,190.47,190.44,0.03737741]
[1738961566322,0.03797782,190.47,190.44,5.28727741]
[1738961566524,0.03797782,190.47,190.44,0.03737741]
[1738961566732,191.0,190.55,190.44,0.03737741]
[1738961567429,5.2485,190.51,190.45,5.2499]
[1738961567933,5.28419625,190.5,190.46,0.03399379]
[1738961568431,5.28419625,190.5,190.46,5.28359379]
[1738961569226,0.03559625,190.5,190.46,5.28359379]
[1738961570130,5.2491,190.48,190.46,0.03399379]
[1738961570424,0.03559625,190.5,190.46,0.03399379]
[1738961571328,5.2493,190.47,190.46,0.03399379]
[1738961573028,5.2491,190.48,190.46,0.03399379]
[1738961573233,0.03559625,190.5,190.46,0.03399379]
[1738961574136,5.2493,190.47,190.46,0.03399379]
[1738961575535,5.2493,190.47,190.46,9.379e-05]
[1738961576937,5.2493,190.47,190.46,5.10949379]
[1738961577139,5.2493,190.47,190.46,9.379e-05]
[1738961577534,5.2493,190.47,190.37,4.6454]
[1738961577729,5.2517,190.39,190.34,5.2527]
[1738961578031,5.2517,190.39,190.35,0.03348273]
[1738961578235,0.03898943,190.38,190.35,0.03348273]
[1738961578436,214.79884783,190.46,190.35,0.03348273]
[1738961578831,214.79884783,190.46,190.35,5.28608273]
[1738961579039,191.0,190.46,190.35,0.03348273]
[1738961579639,0.03691759,190.42,190.35,0.03348273]
[1738961580943,5.2518,190.39,190.35,5.28588273]
[1738961581441,5.2513,190.4,190.36,5.2523]
[1738961581744,0.03691759,190.42,190.35,0.03348273]
[1738961582143,5.2524,190.36,190.35,0.03348273]
[1738961583143,5.2524,190.36,190.35,8.273e-05]
[1738961583938,5.2549,190.27,190.22,5.2562]
[1738961584246,5.2549,190.27,190.21,10.83]
[1738961584443,5.2552,190.26,190.21,7.6759]
[1738961585136,0.03804045,190.25,190.22,0.03675208]
[1738961586138,5.29344045,190.25,190.22,0.03675208]
[1738961586345,0.03804045,190.25,190.22,0.03675208]